[Event "Late-Titled-Tuesday-Blitz-January-16-2024"]
[Site "Chess.com"]
[Date "2024.01.16"]
[Round "5"]
[White "KorolDimitriy75"]
[Black "TEREZANA"]
[Result "1/2-1/2"]
[WhiteElo "2354"]
[BlackElo "2512"]
[TimeControl "180+1"]
[EndTime "14:51:57 PST"]
[Termination "Game drawn by agreement"]

1. d4 {[%clk 0:03:00.9]} 1... d5 {[%clk 0:02:48.1]} 2. c4 {[%clk 0:03:00.4]}
2... e6 {[%clk 0:02:48.7]} 3. Nc3 {[%clk 0:03:00.3]} 3... a6 {[%clk 0:02:47.2]}
4. cxd5 {[%clk 0:02:57]} 4... exd5 {[%clk 0:02:48.1]} 5. Bf4 {[%clk 0:02:57]}
5... c6 {[%clk 0:02:46.7]} 6. e3 {[%clk 0:02:56.9]} 6... Bd6 {[%clk 0:02:45.1]}
7. Bxd6 {[%clk 0:02:50.9]} 7... Qxd6 {[%clk 0:02:46]} 8. Bd3 {[%clk 0:02:51]}
8... Ne7 {[%clk 0:02:46.4]} 9. Qc2 {[%clk 0:02:48.6]} 9... g6 {[%clk 0:02:41.8]}
10. Nge2 {[%clk 0:02:46.5]} 10... Bf5 {[%clk 0:02:38.8]} 11. O-O {[%clk
0:02:44.9]} 11... Nd7 {[%clk 0:02:36.2]} 12. f3 {[%clk 0:02:39.5]} 12... Bxd3
{[%clk 0:02:31.9]} 13. Qxd3 {[%clk 0:02:40.4]} 13... O-O {[%clk 0:02:32.4]} 14.
Rad1 {[%clk 0:02:38.2]} 14... f5 {[%clk 0:02:30]} 15. e4 {[%clk 0:02:29.5]}
15... fxe4 {[%clk 0:02:25.9]} 16. fxe4 {[%clk 0:02:30]} 16... Rxf1+ {[%clk
0:02:26.8]} 17. Rxf1 {[%clk 0:02:10.4]} 17... Rf8 {[%clk 0:02:24.6]} 18. Rxf8+
{[%clk 0:02:01.7]} 18... Nxf8 {[%clk 0:02:25.5]} 19. a3 {[%clk 0:01:02.5]} 19...
Qe6 {[%clk 0:02:10.7]} 20. exd5 {[%clk 0:00:49.5]} 20... Nxd5 {[%clk 0:02:06.1]}
21. Nxd5 {[%clk 0:00:48.2]} 21... Qxd5 {[%clk 0:02:07]} 22. Nc3 {[%clk
0:00:45.9]} 22... Qd6 {[%clk 0:01:55.1]} 23. d5 {[%clk 0:00:26.8]} 23... Qc5+
{[%clk 0:01:47.5]} 24. Kf1 {[%clk 0:00:21.8]} 24... cxd5 {[%clk 0:01:45.8]} 25.
Qxd5+ {[%clk 0:00:20.8]} 25... Qxd5 {[%clk 0:01:13.6]} 26. Nxd5 {[%clk
0:00:21.7]} 26... Kf7 {[%clk 0:01:10.8]} 27. Ke2 {[%clk 0:00:19.3]} 27... Ke6
{[%clk 0:01:11]} 28. Nc3 {[%clk 0:00:17.5]} 28... Nd7 {[%clk 0:01:10.6]} 29. Ke3
{[%clk 0:00:13.1]} 29... Ke5 {[%clk 0:01:08.3]} 30. Ne4 {[%clk 0:00:09.1]}
1/2-1/2

[Event "Late-Titled-Tuesday-Blitz-January-16-2024"]
[Site "Chess.com"]
[Date "2024.01.16"]
[Round "5"]
[White "iturrizaga"]
[Black "ImportedItalianMaple"]
[Result "1-0"]
[WhiteElo "3006"]
[BlackElo "2426"]
[TimeControl "180+1"]
[EndTime "14:52:00 PST"]
[Termination "iturrizaga won by resignation"]

1. c4 {[%clk 0:03:00.9]} 1... g6 {[%clk 0:02:48]} 2. g3 {[%clk 0:03:01.8]} 2...
Bg7 {[%clk 0:02:48.5]} 3. Bg2 {[%clk 0:03:02.6]} 3... Nf6 {[%clk 0:02:43.8]} 4.
Nc3 {[%clk 0:03:03.1]} 4... O-O {[%clk 0:02:44.7]} 5. d4 {[%clk 0:03:03.4]} 5...
d6 {[%clk 0:02:43.1]} 6. Nf3 {[%clk 0:03:03.8]} 6... Nbd7 {[%clk 0:02:42.4]} 7.
O-O {[%clk 0:03:04.1]} 7... e5 {[%clk 0:02:40.6]} 8. Qc2 {[%clk 0:03:05]} 8...
c6 {[%clk 0:02:34.1]} 9. Rd1 {[%clk 0:03:04.8]} 9... Qc7 {[%clk 0:02:27.8]} 10.
b3 {[%clk 0:03:04.8]} 10... Re8 {[%clk 0:02:24.9]} 11. Ba3 {[%clk 0:03:04.2]}
11... e4 {[%clk 0:02:16.7]} 12. Ng5 {[%clk 0:03:02.4]} 12... d5 {[%clk
0:02:13.7]} 13. Rac1 {[%clk 0:02:59.2]} 13... Qa5 {[%clk 0:02:06]} 14. Bd6
{[%clk 0:02:55.7]} 14... dxc4 {[%clk 0:02:03.4]} 15. Ngxe4 {[%clk 0:02:55.6]}
15... cxb3 {[%clk 0:02:01.2]} 16. axb3 {[%clk 0:02:48.3]} 16... Nxe4 {[%clk
0:01:32.4]} 17. Nxe4 {[%clk 0:02:48]} 17... Nf6 {[%clk 0:01:32.4]} 18. Nc5
{[%clk 0:02:46]} 18... Qd8 {[%clk 0:01:30.4]} 19. Be5 {[%clk 0:02:42.4]} 19...
Nd5 {[%clk 0:01:25.3]} 20. e4 {[%clk 0:02:38.2]} 20... Nc7 {[%clk 0:01:15.1]}
21. Bf4 {[%clk 0:02:35.7]} 21... Ne6 {[%clk 0:01:12.8]} 22. Nxe6 {[%clk
0:02:32.2]} 22... Bxe6 {[%clk 0:01:13.7]} 23. b4 {[%clk 0:02:28.3]} 23... Rc8
{[%clk 0:01:02.3]} 24. Qa4 {[%clk 0:02:25.8]} 24... Qb6 {[%clk 0:00:45.7]} 25.
Be3 {[%clk 0:02:25]} 25... Bg4 {[%clk 0:00:21.9]} 26. Rd2 {[%clk 0:02:16.5]}
26... Qb5 {[%clk 0:00:16.5]} 27. Qxb5 {[%clk 0:02:09.5]} 27... cxb5 {[%clk
0:00:17.4]} 28. Rb1 {[%clk 0:02:01.9]} 28... Bf8 {[%clk 0:00:16.6]} 29. h3
{[%clk 0:02:00.3]} 29... Bd7 {[%clk 0:00:16.4]} 30. d5 {[%clk 0:02:00.5]} 30...
b6 {[%clk 0:00:16.6]} 31. Ra2 {[%clk 0:01:55.8]} 31... a5 {[%clk 0:00:17]} 32.
bxa5 {[%clk 0:01:53.5]} 32... Ra8 {[%clk 0:00:17]} 33. Bxb6 {[%clk 0:01:53.2]}
33... f5 {[%clk 0:00:13.9]} 34. exf5 {[%clk 0:01:49.3]} 34... Bxf5 {[%clk
0:00:14.2]} 35. Rxb5 {[%clk 0:01:49.9]} 35... Re1+ {[%clk 0:00:14.3]} 36. Kh2
{[%clk 0:01:50.1]} 36... Rae8 {[%clk 0:00:14.2]} 37. Be3 {[%clk 0:01:44]} 37...
Bd6 {[%clk 0:00:13.5]} 38. Rb6 {[%clk 0:01:40.9]} 38... Bc7 {[%clk 0:00:13.6]}
39. Rc6 {[%clk 0:01:41.1]} 39... Be5 {[%clk 0:00:13.9]} 40. a6 {[%clk
0:01:41.4]} 40... Bd7 {[%clk 0:00:13.8]} 41. a7 {[%clk 0:01:41.1]} 41... Ra8
{[%clk 0:00:10.5]} 42. d6 {[%clk 0:01:39.8]} 42... Rd1 {[%clk 0:00:04.6]} 43.
Rc7 {[%clk 0:01:35.8]} 1-0

[Event "Late-Titled-Tuesday-Blitz-January-16-2024"]
[Site "Chess.com"]
[Date "2024.01.16"]
[Round "5"]
[White "NikoTheodorou"]
[Black "Sebastian"]
[Result "0-1"]
[WhiteElo "3072"]
[BlackElo "2987"]
[TimeControl "180+1"]
[EndTime "14:52:01 PST"]
[Termination "Sebastian won by resignation"]

1. Nf3 {[%clk 0:03:00.9]} 1... Nf6 {[%clk 0:02:59.8]} 2. b3 {[%clk 0:03:01.8]}
2... c5 {[%clk 0:02:58.3]} 3. Bb2 {[%clk 0:03:02]} 3... Nc6 {[%clk 0:02:59]} 4.
e3 {[%clk 0:03:01.7]} 4... g6 {[%clk 0:02:58.8]} 5. Be2 {[%clk 0:02:58.3]} 5...
Bg7 {[%clk 0:02:58.6]} 6. O-O {[%clk 0:02:59.1]} 6... O-O {[%clk 0:02:58.7]} 7.
c4 {[%clk 0:02:59.9]} 7... b6 {[%clk 0:02:51.3]} 8. d4 {[%clk 0:03:00]} 8...
cxd4 {[%clk 0:02:51.3]} 9. Nxd4 {[%clk 0:02:58.5]} 9... Bb7 {[%clk 0:02:51.3]}
10. Nc3 {[%clk 0:02:58]} 10... Nxd4 {[%clk 0:02:38.6]} 11. Qxd4 {[%clk
0:02:58.9]} 11... Ne4 {[%clk 0:02:33.8]} 12. Qd3 {[%clk 0:02:59.5]} 12... Nxc3
{[%clk 0:02:19.5]} 13. Bxc3 {[%clk 0:02:59.9]} 13... Bxc3 {[%clk 0:02:19.4]} 14.
Qxc3 {[%clk 0:03:00.8]} 14... d5 {[%clk 0:02:14.4]} 15. Rfd1 {[%clk 0:02:55]}
15... Qc7 {[%clk 0:02:13.8]} 16. Rac1 {[%clk 0:02:51.4]} 16... Rac8 {[%clk
0:02:11.9]} 17. Qb2 {[%clk 0:02:43.8]} 17... dxc4 {[%clk 0:02:03.2]} 18. Bxc4
{[%clk 0:02:44.7]} 18... Qb8 {[%clk 0:01:44.9]} 19. Rd7 {[%clk 0:02:36.6]} 19...
b5 {[%clk 0:01:31.8]} 20. Bxb5 {[%clk 0:01:56.1]} 20... Rxc1+ {[%clk 0:01:30.5]}
21. Qxc1 {[%clk 0:01:57]} 21... Bxg2 {[%clk 0:01:30.1]} 22. Qc5 {[%clk
0:01:57.3]} 22... Bh3 {[%clk 0:01:22.4]} 23. Rxe7 {[%clk 0:01:10.4]} 23... Qd8
{[%clk 0:01:21.3]} 24. Bf1 {[%clk 0:00:44.1]} 24... Bxf1 {[%clk 0:01:17.1]} 25.
Kxf1 {[%clk 0:00:45]} 25... Qd1+ {[%clk 0:01:16.5]} 26. Kg2 {[%clk 0:00:45.8]}
26... Qg4+ {[%clk 0:01:16.7]} 27. Kf1 {[%clk 0:00:17]} 27... Rd8 {[%clk
0:01:15.5]} 28. Qc2 {[%clk 0:00:04.4]} 28... Rd1+ {[%clk 0:01:13.3]} 29. Qxd1
{[%clk 0:00:05.1]} 29... Qxd1+ {[%clk 0:01:13.4]} 30. Kg2 {[%clk 0:00:06]} 30...
Qd5+ {[%clk 0:01:10.2]} 31. Kf1 {[%clk 0:00:05]} 31... Qb5+ {[%clk 0:01:05.4]}
0-1

[Event "Late-Titled-Tuesday-Blitz-January-16-2024"]
[Site "Chess.com"]
[Date "2024.01.16"]
[Round "5"]
[White "chucksterf10"]
[Black "vidavi"]
[Result "0-1"]
[WhiteElo "2623"]
[BlackElo "2497"]
[TimeControl "180+1"]
[EndTime "14:52:01 PST"]
[Termination "vidavi won by checkmate"]

1. e3 {[%clk 0:02:57.6]} 1... d5 {[%clk 0:02:39.6]} 2. Nf3 {[%clk 0:02:57.7]}
2... Nf6 {[%clk 0:02:39.9]} 3. b3 {[%clk 0:02:57.5]} 3... g6 {[%clk 0:02:40]} 4.
Bb2 {[%clk 0:02:58]} 4... Bg7 {[%clk 0:02:40.6]} 5. Be2 {[%clk 0:02:57.3]} 5...
O-O {[%clk 0:02:40.6]} 6. O-O {[%clk 0:02:57.9]} 6... c5 {[%clk 0:02:40.9]} 7.
c4 {[%clk 0:02:58.3]} 7... Nc6 {[%clk 0:02:40]} 8. cxd5 {[%clk 0:02:58.5]} 8...
Qxd5 {[%clk 0:02:32.5]} 9. Nc3 {[%clk 0:02:58.4]} 9... Qd7 {[%clk 0:02:28.3]}
10. d4 {[%clk 0:02:58.6]} 10... cxd4 {[%clk 0:02:25.7]} 11. Nxd4 {[%clk
0:02:59.5]} 11... Nxd4 {[%clk 0:02:25.4]} 12. Qxd4 {[%clk 0:03:00.4]} 12... Qxd4
{[%clk 0:02:25.2]} 13. exd4 {[%clk 0:03:01.3]} 13... Be6 {[%clk 0:02:20]} 14.
Bf3 {[%clk 0:03:01.3]} 14... Rab8 {[%clk 0:02:17.6]} 15. Rfd1 {[%clk 0:03:00.6]}
15... Rfd8 {[%clk 0:02:15.8]} 16. Rac1 {[%clk 0:03:00.7]} 16... Nd5 {[%clk
0:02:08.9]} 17. Nxd5 {[%clk 0:03:00.7]} 17... Bxd5 {[%clk 0:02:09.8]} 18. Bxd5
{[%clk 0:03:01.1]} 18... Rxd5 {[%clk 0:02:09.8]} 19. Rc7 {[%clk 0:03:01.7]}
19... e5 {[%clk 0:01:55.6]} 20. Rdc1 {[%clk 0:03:01.2]} 20... exd4 {[%clk
0:01:49]} 21. Rc8+ {[%clk 0:03:01.4]} 21... Rd8 {[%clk 0:01:49.6]} 22. Rxb8
{[%clk 0:03:01.3]} 22... Rxb8 {[%clk 0:01:49.4]} 23. Rc7 {[%clk 0:03:01.3]}
23... d3 {[%clk 0:01:25.4]} 24. Bxg7 {[%clk 0:02:55.3]} 24... d2 {[%clk
0:01:25.5]} 25. Rd7 {[%clk 0:02:54.4]} 25... Re8 {[%clk 0:01:25.5]} 26. h4
{[%clk 0:02:36.5]} 26... Re1+ {[%clk 0:01:24.5]} 27. Kh2 {[%clk 0:02:36.7]}
27... d1=Q {[%clk 0:01:24.7]} 28. Rxd1 {[%clk 0:02:36.5]} 28... Rxd1 {[%clk
0:01:24.4]} 29. Bc3 {[%clk 0:02:36.2]} 29... Rc1 {[%clk 0:01:22.3]} 30. Bd4
{[%clk 0:02:36.4]} 30... a6 {[%clk 0:01:18.6]} 31. g3 {[%clk 0:02:33.7]} 31...
f5 {[%clk 0:01:10.7]} 32. Kg2 {[%clk 0:02:33]} 32... Kf7 {[%clk 0:01:11.4]} 33.
Kf3 {[%clk 0:02:32.7]} 33... Rc2 {[%clk 0:01:06.8]} 34. a3 {[%clk 0:02:32.5]}
34... Ra2 {[%clk 0:01:06.5]} 35. Bc5 {[%clk 0:02:32]} 35... Rb2 {[%clk 0:01:05]}
36. b4 {[%clk 0:02:30.9]} 36... Rb3+ {[%clk 0:01:05]} 37. Kf4 {[%clk 0:02:30.6]}
37... Rxa3 {[%clk 0:01:05.2]} 38. h5 {[%clk 0:02:26.8]} 38... a5 {[%clk
0:00:42.9]} 39. bxa5 {[%clk 0:02:25.5]} 39... Rxa5 {[%clk 0:00:42.1]} 40. Bb6
{[%clk 0:02:26]} 40... Ra6 {[%clk 0:00:40.9]} 41. Bc5 {[%clk 0:02:26.5]} 41...
Rc6 {[%clk 0:00:39.1]} 42. Ba3 {[%clk 0:02:24.5]} 42... b5 {[%clk 0:00:34.9]}
43. Ke5 {[%clk 0:02:24.9]} 43... Rc3 {[%clk 0:00:33.5]} 44. Bb4 {[%clk
0:02:24.5]} 44... Rc4 {[%clk 0:00:33.1]} 45. Bd6 {[%clk 0:02:23.5]} 45... Rc2
{[%clk 0:00:28.7]} 46. f3 {[%clk 0:02:22.2]} 46... Re2+ {[%clk 0:00:24.9]} 47.
Kf4 {[%clk 0:02:22.2]} 47... Rb2 {[%clk 0:00:21.8]} 48. Ke3 {[%clk 0:02:19.7]}
48... Rb3+ {[%clk 0:00:20.5]} 49. Kf4 {[%clk 0:02:17.7]} 49... Ke6 {[%clk
0:00:21.1]} 50. Bf8 {[%clk 0:02:17.1]} 50... gxh5 {[%clk 0:00:21.4]} 51. Bc5
{[%clk 0:02:08.9]} 51... Rc3 {[%clk 0:00:21.2]} 52. Bf8 {[%clk 0:02:06.3]} 52...
b4 {[%clk 0:00:21.1]} 53. Kg5 {[%clk 0:02:05.1]} 53... b3 {[%clk 0:00:20.5]} 54.
Bg7 {[%clk 0:02:05.6]} 54... b2 {[%clk 0:00:18.1]} 55. Kxh5 {[%clk 0:02:06.1]}
55... b1=Q {[%clk 0:00:17.1]} 56. Bxc3 {[%clk 0:02:06.2]} 56... Qh1+ {[%clk
0:00:16.4]} 57. Kg5 {[%clk 0:02:06.6]} 57... Qc1+ {[%clk 0:00:16.8]} 58. Bd2
{[%clk 0:02:06.1]} 58... Qxd2+ {[%clk 0:00:17.2]} 59. f4 {[%clk 0:02:06.5]}
59... Qh2 {[%clk 0:00:16.3]} 60. g4 {[%clk 0:02:06.6]} 60... Qg3 {[%clk
0:00:16.3]} 61. Kh6 {[%clk 0:02:07]} 61... Qxg4 {[%clk 0:00:16.4]} 62. Kxh7
{[%clk 0:02:07.5]} 62... Kf7 {[%clk 0:00:16.9]} 63. Kh6 {[%clk 0:02:08.4]} 63...
Qh4# {[%clk 0:00:17.4]} 0-1

[Event "Late-Titled-Tuesday-Blitz-January-16-2024"]
[Site "Chess.com"]
[Date "2024.01.16"]
[Round "5"]
[White "Polish_fighter3000"]
[Black "rasmussvane"]
[Result "1-0"]
[WhiteElo "3107"]
[BlackElo "2982"]
[TimeControl "180+1"]
[EndTime "14:52:04 PST"]
[Termination "Polish_fighter3000 won by resignation"]

1. e4 {[%clk 0:03:00.9]} 1... e5 {[%clk 0:02:53.1]} 2. Nf3 {[%clk 0:03:01.3]}
2... Nc6 {[%clk 0:02:53.5]} 3. Bb5 {[%clk 0:03:01.5]} 3... a6 {[%clk 0:02:53.7]}
4. Ba4 {[%clk 0:03:01.8]} 4... Nf6 {[%clk 0:02:53.9]} 5. O-O {[%clk 0:03:01.8]}
5... Be7 {[%clk 0:02:54]} 6. Re1 {[%clk 0:03:00.5]} 6... b5 {[%clk 0:02:54.3]}
7. Bb3 {[%clk 0:03:01.1]} 7... O-O {[%clk 0:02:54.9]} 8. a4 {[%clk 0:03:01.3]}
8... Bb7 {[%clk 0:02:53.1]} 9. d3 {[%clk 0:03:00.1]} 9... d6 {[%clk 0:02:52]}
10. Nc3 {[%clk 0:02:58]} 10... Na5 {[%clk 0:02:40.8]} 11. Ba2 {[%clk 0:02:56]}
11... b4 {[%clk 0:02:39.1]} 12. Ne2 {[%clk 0:02:56.5]} 12... c5 {[%clk
0:02:39.6]} 13. Ng3 {[%clk 0:02:55.5]} 13... Bc8 {[%clk 0:02:39.9]} 14. c3
{[%clk 0:02:39.3]} 14... Rb8 {[%clk 0:02:35.6]} 15. d4 {[%clk 0:02:39.2]} 15...
Qc7 {[%clk 0:02:05.4]} 16. cxb4 {[%clk 0:02:27.4]} 16... cxb4 {[%clk 0:01:30.8]}
17. Be3 {[%clk 0:02:26.8]} 17... Bg4 {[%clk 0:01:21.7]} 18. Rc1 {[%clk
0:02:23.2]} 18... Qb7 {[%clk 0:01:14.1]} 19. h3 {[%clk 0:02:22.9]} 19... Bxf3
{[%clk 0:01:13.8]} 20. Qxf3 {[%clk 0:02:23.8]} 20... Rfc8 {[%clk 0:01:09]} 21.
Nf5 {[%clk 0:02:16.9]} 21... b3 {[%clk 0:01:06.1]} 22. Bb1 {[%clk 0:02:11.7]}
22... Nc4 {[%clk 0:01:05.5]} 23. Bg5 {[%clk 0:01:43.1]} 23... exd4 {[%clk
0:00:58.9]} 24. Qd3 {[%clk 0:01:31]} 24... Ne5 {[%clk 0:00:51.3]} 25. Qxd4
{[%clk 0:01:30.5]} 25... h6 {[%clk 0:00:51.1]} 26. Bf4 {[%clk 0:00:48]} 26...
Rxc1 {[%clk 0:00:29]} 27. Rxc1 {[%clk 0:00:48.9]} 27... Rd8 {[%clk 0:00:28.9]}
28. Rc3 {[%clk 0:00:43.4]} 28... Nc6 {[%clk 0:00:22.7]} 29. Rxc6 {[%clk
0:00:42.1]} 1-0

[Event "Late-Titled-Tuesday-Blitz-January-16-2024"]
[Site "Chess.com"]
[Date "2024.01.16"]
[Round "5"]
[White "Bigfish1995"]
[Black "vugarrasulov"]
[Result "1-0"]
[WhiteElo "3083"]
[BlackElo "2968"]
[TimeControl "180+1"]
[EndTime "14:52:07 PST"]
[Termination "Bigfish1995 won by resignation"]

1. e4 {[%clk 0:03:00.9]} 1... e5 {[%clk 0:03:00]} 2. Nf3 {[%clk 0:03:00.2]} 2...
Nc6 {[%clk 0:03:00.5]} 3. Bb5 {[%clk 0:02:58.9]} 3... Nf6 {[%clk 0:02:55.4]} 4.
d3 {[%clk 0:02:58.5]} 4... Bc5 {[%clk 0:02:54.4]} 5. Bxc6 {[%clk 0:02:55.5]}
5... dxc6 {[%clk 0:02:54.3]} 6. Qe2 {[%clk 0:02:56.1]} 6... Qe7 {[%clk
0:02:52.3]} 7. Nbd2 {[%clk 0:02:54.7]} 7... O-O {[%clk 0:02:47.2]} 8. a3 {[%clk
0:02:50.5]} 8... Bg4 {[%clk 0:02:40.4]} 9. h3 {[%clk 0:02:48.6]} 9... Bxf3
{[%clk 0:02:40]} 10. Nxf3 {[%clk 0:02:47.8]} 10... Nd7 {[%clk 0:02:40.4]} 11.
O-O {[%clk 0:02:45.9]} 11... Rfe8 {[%clk 0:02:39.2]} 12. Re1 {[%clk 0:02:30.8]}
12... a5 {[%clk 0:02:37.2]} 13. Bd2 {[%clk 0:02:26.9]} 13... a4 {[%clk
0:02:36.4]} 14. Bc3 {[%clk 0:02:25.2]} 14... Bd6 {[%clk 0:02:36]} 15. d4 {[%clk
0:02:22.5]} 15... exd4 {[%clk 0:02:19.1]} 16. Nxd4 {[%clk 0:02:20.6]} 16... Be5
{[%clk 0:02:19.4]} 17. Rad1 {[%clk 0:02:14.9]} 17... g6 {[%clk 0:02:15.5]} 18.
Qe3 {[%clk 0:01:57.4]} 18... Bg7 {[%clk 0:02:05.8]} 19. Qg3 {[%clk 0:01:53.4]}
19... Be5 {[%clk 0:01:41.3]} 20. f4 {[%clk 0:01:47.9]} 20... Bf6 {[%clk
0:01:24.4]} 21. Re3 {[%clk 0:01:02.6]} 21... Nb6 {[%clk 0:01:04.1]} 22. Nf5
{[%clk 0:00:58.5]} 22... Qe6 {[%clk 0:01:04.2]} 23. Nh6+ {[%clk 0:00:58]} 23...
Kf8 {[%clk 0:00:52.2]} 24. f5 {[%clk 0:00:55.5]} 24... Qe7 {[%clk 0:00:52.5]}
25. fxg6 {[%clk 0:00:55.7]} 25... Bxc3 {[%clk 0:00:27.9]} 26. gxf7 {[%clk
0:00:51.7]} 26... Bg7 {[%clk 0:00:19.5]} 27. fxe8=Q+ {[%clk 0:00:50.4]} 27...
Kxe8 {[%clk 0:00:18.2]} 28. Nf5 {[%clk 0:00:50.4]} 28... Be5 {[%clk 0:00:17.6]}
29. Qg8+ {[%clk 0:00:49.2]} 29... Qf8 {[%clk 0:00:18]} 30. Qe6+ {[%clk
0:00:49.7]} 1-0

[Event "Late-Titled-Tuesday-Blitz-January-16-2024"]
[Site "Chess.com"]
[Date "2024.01.16"]
[Round "5"]
[White "Atousa"]
[Black "NovakRatko"]
[Result "0-1"]
[WhiteElo "2460"]
[BlackElo "2316"]
[TimeControl "180+1"]
[EndTime "14:52:12 PST"]
[Termination "NovakRatko won by resignation"]

1. e4 {[%clk 0:02:44.2]} 1... d5 {[%clk 0:02:59.6]} 2. exd5 {[%clk 0:02:41.2]}
2... c6 {[%clk 0:02:59.6]} 3. dxc6 {[%clk 0:02:40.7]} 3... Nxc6 {[%clk
0:03:00.5]} 4. Nf3 {[%clk 0:02:39.9]} 4... e5 {[%clk 0:03:00.7]} 5. Nc3 {[%clk
0:02:36.1]} 5... Bd6 {[%clk 0:02:59.3]} 6. Bb5 {[%clk 0:02:26.1]} 6... Ne7
{[%clk 0:02:59]} 7. O-O {[%clk 0:02:20.2]} 7... Bg4 {[%clk 0:02:55.3]} 8. h3
{[%clk 0:02:18.5]} 8... Bh5 {[%clk 0:02:55.4]} 9. Ne4 {[%clk 0:02:01.7]} 9...
O-O {[%clk 0:02:52.5]} 10. c3 {[%clk 0:01:59]} 10... f5 {[%clk 0:02:42.3]} 11.
Ng3 {[%clk 0:01:56.6]} 11... Bxf3 {[%clk 0:02:21.5]} 12. Qxf3 {[%clk 0:01:57.5]}
12... e4 {[%clk 0:02:21.9]} 13. Qd1 {[%clk 0:01:47.9]} 13... Bxg3 {[%clk
0:02:20.7]} 14. Bc4+ {[%clk 0:01:33.7]} 14... Kh8 {[%clk 0:02:19.9]} 15. fxg3
{[%clk 0:01:33.5]} 15... Ne5 {[%clk 0:02:14.8]} 16. Be2 {[%clk 0:01:32.1]} 16...
Qc7 {[%clk 0:02:13.7]} 17. d4 {[%clk 0:01:05.7]} 17... exd3 {[%clk 0:02:11.8]}
18. Bf3 {[%clk 0:00:54.5]} 18... Rad8 {[%clk 0:02:03.3]} 19. Bf4 {[%clk
0:00:51.4]} 19... N7g6 {[%clk 0:02:00.9]} 20. Kh1 {[%clk 0:00:40.4]} 20... Nxf4
{[%clk 0:01:51.7]} 21. gxf4 {[%clk 0:00:41.3]} 21... Nc4 {[%clk 0:01:48]} 22.
Rf2 {[%clk 0:00:40.8]} 22... Qb6 {[%clk 0:01:16.7]} 23. Qg1 {[%clk 0:00:29.9]}
23... d2 {[%clk 0:01:11]} 24. b3 {[%clk 0:00:27.7]} 24... Ne3 {[%clk 0:01:06.4]}
25. c4 {[%clk 0:00:20.4]} 25... Qd4 {[%clk 0:01:00.7]} 26. Bd1 {[%clk
0:00:16.8]} 26... Qxa1 {[%clk 0:00:58.1]} 27. Rf3 {[%clk 0:00:05.7]} 27... Qxd1
{[%clk 0:00:48.3]} 0-1